{"text_format":"1","workbook":"xlsx","n_sheets":4,"sheets":["提出用","提出用写","入力用","提出用控"],"not_rendered":{"charts":0,"images":2,"macros":1,"external_links":0,"defined_names":4,"comments":0,"pivot_tables":0},"unopened":[],"bounds":{"document_bytes":16777216,"sheet_cells":100000,"rows_first":2000,"rows_last":500,"rows_between":2000,"halvings":0,"cell_chars":16384,"cell_head_chars":4096},"cells_cut":0,"cells_raw":0,"read":"whole","date_system":"1900"}

{"sheet":"提出用","index":0,"n_rows":64,"n_cols":65,"rows_kept":64,"cut":false,"hidden":false,"merged":[[3,1,3,22],[4,1,7,22],[8,1,9,22],[10,1,10,22],[39,13,40,23],[31,13,32,23],[25,13,26,23],[27,13,28,23],[29,13,30,23],[18,1,19,12],[18,13,19,72],[9,67,10,72],[13,16,15,17],[13,11,15,13],[13,14,15,15],[13,18,15,19],[63,24,63,72],[57,1,60,12],[53,1,56,12],[55,24,55,72],[57,24,57,72],[61,24,61,72],[61,1,64,12],[61,13,62,23],[63,13,64,23],[59,24,59,72],[59,13,60,23],[53,13,54,23],[55,13,56,23],[57,13,58,23],[49,1,52,12],[45,13,46,23],[47,13,48,23],[49,13,50,23],[51,13,52,23],[45,1,48,12],[15,59,17,72],[37,24,37,72],[35,24,35,72],[31,24,31,72],[25,24,25,72],[27,24,27,72],[29,24,29,72],[13,20,15,22],[6,31,6,33],[6,34,6,36],[6,37,6,39],[6,49,6,51],[9,43,10,48],[9,49,10,54],[7,25,8,36],[7,37,8,72],[9,25,10,30],[6,52,6,54],[9,31,10,36],[9,37,10,42],[9,55,10,60],[9,61,10,66],[12,49,13,58],[2,23,11,24],[6,28,6,30],[6,40,6,42],[33,24,33,72],[2,64,3,72],[2,25,3,54],[2,55,3,63],[4,25,5,54],[4,64,5,68],[4,69,5,72],[4,55,5,58],[4,59,5,63],[6,43,6,45],[6,46,6,48],[12,59,14,72],[15,49,16,58],[51,24,51,72],[53,24,53,72],[21,24,21,72],[41,24,41,72],[43,24,43,72],[45,24,45,72],[47,24,47,72],[39,24,39,72],[37,1,40,12],[41,1,44,12],[20,13,22,23],[23,13,24,23],[49,24,49,72],[20,1,20,12],[33,13,34,23],[35,13,36,23],[37,13,38,23],[41,13,42,23],[43,13,44,23],[21,1,24,12],[23,24,23,72],[33,1,36,12],[25,1,28,12],[29,1,32,12]]}
[]
[]
[null,null,null,null,null,null,null,null,null,null,null,null,null,null,null,null,null,null,null,null,null,null,null,"※処理事項",null,"事業者コード",null,null,null,null,null,null,null,null,null,null,null,null,null,null,null,null,null,null,null,null,null,null,null,null,null,null,null,null,null,"処理\n区分",null,null,null,null,null,null,null,null,"申告\n区分"]
[null,"　申告者の氏名又は名称"]
[]
[]
[]
[null,null,null,null,null,null,null,null,null,null,null,null,null,null,null,null,null,null,null,null,null,null,null,null,null,"予備",null,null,null,null,null,null,null,null,null,null,null,"申告年月日"]
[null,"　個人番号又は法人番号\n　　　　　　↓個人番号の記載に当たっては、左端を空欄とし、ここから記載してください。"]
[null,null,null,null,null,null,null,null,null,null,null,null,null,null,null,null,null,null,null,null,null,null,null,null,null,1,null,null,null,null,null,3]
[]
[]
[null,null,null,null,null,null,null,null,null,null,null,null,null,null,null,null,null,null,null,null,null,null,null,null,null,null,null,null,null,null,null,null,null,null,null,null,null,null,null,null,null,null,null,null,null,null,null,null,null,null,null,null,null,null,null,null,null,null,null,"枚のうち"]
[null,null,null,null,null,null,null,null,null,null,null,"令和",null,null,null,null,"年",null,null,null,"月分"]
[]
[null,null,null,null,null,null,null,null,null,null,null,null,null,null,null,null,null,null,null,null,null,null,null,null,null,null,null,null,null,null,null,null,null,null,null,null,null,null,null,null,null,null,null,null,null,null,null,null,null,null,null,null,null,null,null,null,null,null,null,"枚目"]
[]
[]
[null,"卸売販売業者等の氏名又は名称",null,null,null,null,null,null,null,null,null,null,null,"数量"]
[]
[]
[]
[]
[null,null,null,null,null,null,null,null,null,null,null,null,null,"うち小売販売用"]
[]
[]
[]
[null,null,null,null,null,null,null,null,null,null,null,null,null,"うち小売販売用"]
[]
[]
[]
[null,null,null,null,null,null,null,null,null,null,null,null,null,"うち小売販売用"]
[]
[]
[]
[null,null,null,null,null,null,null,null,null,null,null,null,null,"うち小売販売用"]
[]
[]
[]
[null,null,null,null,null,null,null,null,null,null,null,null,null,"うち小売販売用"]
[]
[]
[]
[null,null,null,null,null,null,null,null,null,null,null,null,null,"うち小売販売用"]
[]
[]
[]
[null,null,null,null,null,null,null,null,null,null,null,null,null,"うち小売販売用"]
[]
[]
[]
[null,null,null,null,null,null,null,null,null,null,null,null,null,"うち小売販売用"]
[]
[]
[]
[null,null,null,null,null,null,null,null,null,null,null,null,null,"うち小売販売用"]
[]
[]
[]
[null,null,null,null,null,null,null,null,null,null,null,null,null,"うち小売販売用"]
[]
[]
[]
[null,null,null,null,null,null,null,null,null,null,null,null,null,"うち小売販売用"]

{"sheet":"提出用写","index":1,"n_rows":64,"n_cols":65,"rows_kept":64,"cut":false,"hidden":true,"merged":[[3,1,3,22],[4,1,7,22],[8,1,9,22],[10,1,10,22],[57,1,60,12],[57,13,58,13],[59,13,60,23],[61,1,64,12],[61,13,62,13],[63,13,64,23],[41,1,44,12],[41,13,42,13],[43,13,44,23],[45,1,48,12],[45,13,46,13],[47,13,48,23],[25,1,28,12],[25,13,26,13],[27,13,28,23],[29,1,32,12],[29,13,30,13],[31,13,32,23],[13,16,15,17],[13,11,15,13],[57,24,57,72],[59,24,59,72],[61,24,61,72],[63,24,63,72],[57,14,57,23],[61,14,61,23],[49,1,52,12],[49,13,50,13],[51,13,52,23],[53,1,56,12],[53,13,54,13],[55,13,56,23],[49,24,49,72],[51,24,51,72],[53,24,53,72],[55,24,55,72],[49,14,49,23],[53,14,53,23],[41,24,41,72],[43,24,43,72],[45,24,45,72],[47,24,47,72],[45,14,45,23],[41,14,41,23],[33,1,36,12],[33,13,34,13],[35,13,36,23],[37,1,40,12],[37,13,38,13],[39,13,40,23],[33,24,33,72],[35,24,35,72],[37,24,37,72],[39,24,39,72],[33,14,33,23],[37,14,37,23],[25,24,25,72],[27,24,27,72],[29,24,29,72],[31,24,31,72],[25,14,25,23],[29,14,29,23],[18,1,19,12],[18,13,19,23],[18,24,19,72],[20,13,22,13],[23,13,24,23],[21,24,21,72],[23,24,23,72],[21,1,24,12],[20,1,20,12],[21,14,21,23],[13,14,15,15],[13,18,15,19],[13,20,15,22],[12,49,13,58],[12,59,14,72],[15,49,16,58],[15,59,17,72],[2,55,3,63],[4,55,5,58],[4,59,5,63],[2,23,11,24],[2,25,3,54],[9,55,10,60],[9,61,10,66],[9,67,10,72],[6,49,6,51],[6,52,6,54],[7,25,8,36],[7,37,8,72],[4,25,5,54],[2,64,3,72],[9,25,10,30],[9,31,10,36],[9,37,10,42],[9,43,10,48],[9,49,10,54],[4,64,5,68],[4,69,5,72],[6,28,6,30],[6,31,6,33],[6,34,6,36],[6,37,6,39],[6,40,6,42],[6,43,6,45],[6,46,6,48]]}
[]
[]
[null,null,null,null,null,null,null,null,null,null,null,null,null,null,null,null,null,null,null,null,null,null,null,"※処理事項",null,"事業者コード",null,null,null,null,null,null,null,null,null,null,null,null,null,null,null,null,null,null,null,null,null,null,null,null,null,null,null,null,null,"処理\n区分",null,null,null,null,null,null,null,null,"申告\n区分"]
[null,"　申告者の氏名又は名称"]
[null,{"$f":"IF(提出用!B5=\"\",\"\",提出用!B5)","v":""},null,null,null,null,null,null,null,null,null,null,null,null,null,null,null,null,null,null,null,null,null,null,null,{"$f":"IF(提出用!Z5=\"\",\"\",提出用!Z5)","v":""}]
[]
[]
[null,null,null,null,null,null,null,null,null,null,null,null,null,null,null,null,null,null,null,null,null,null,null,null,null,"予備",null,null,null,null,null,null,null,null,null,null,null,"申告年月日"]
[null,"　個人番号又は法人番号\n　　　　　　↓個人番号の記載に当たっては、左端を空欄とし、ここから記載してください。"]
[null,null,null,null,null,null,null,null,null,null,null,null,null,null,null,null,null,null,null,null,null,null,null,null,null,1,null,null,null,null,null,3]
[null,{"$f":"IF(提出用!B11=\"\",\"\",提出用!B11)","v":""}]
[]
[null,null,null,null,null,null,null,null,null,null,null,null,null,null,null,null,null,null,null,null,null,null,null,null,null,null,null,null,null,null,null,null,null,null,null,null,null,null,null,null,null,null,null,null,null,null,null,null,null,{"$f":"IF(提出用!AX13=\"\",\"\",提出用!AX13)","v":""},null,null,null,null,null,null,null,null,null,"枚のうち"]
[null,null,null,null,null,null,null,null,null,null,null,"令和",null,null,{"$f":"IF(提出用!O14=\"\",\"\",提出用!O14)","v":""},null,"年",null,{"$f":"IF(提出用!S14=\"\",\"\",提出用!S14)","v":""},null,"月分"]
[]
[null,null,null,null,null,null,null,null,null,null,null,null,null,null,null,null,null,null,null,null,null,null,null,null,null,null,null,null,null,null,null,null,null,null,null,null,null,null,null,null,null,null,null,null,null,null,null,null,null,{"$f":"IF(提出用!AX16=\"\",\"\",提出用!AX16)","v":""},null,null,null,null,null,null,null,null,null,"枚目"]
[]
[]
[null,"卸売販売業者等の氏名又は名称",null,null,null,null,null,null,null,null,null,null,null,"相手先事業者コード",null,null,null,null,null,null,null,null,null,null,"数量"]
[]
[]
[null,{"$f":"IF(提出用!B22=\"\",\"\",提出用!B22)","v":""},null,null,null,null,null,null,null,null,null,null,null,null,null,null,null,null,null,null,null,null,null,null,{"$f":"IF(提出用!Y22=\"\",\"\",提出用!Y22)","v":""}]
[]
[null,null,null,null,null,null,null,null,null,null,null,null,null,"うち小売販売用",null,null,null,null,null,null,null,null,null,null,{"$f":"IF(提出用!Y24=\"\",\"\",提出用!Y24)","v":""}]
[]
[null,{"$f":"IF(提出用!B26=\"\",\"\",提出用!B26)","v":""},null,null,null,null,null,null,null,null,null,null,null,null,null,null,null,null,null,null,null,null,null,null,{"$f":"IF(提出用!Y26=\"\",\"\",提出用!Y26)","v":""}]
[]
[null,null,null,null,null,null,null,null,null,null,null,null,null,"うち小売販売用",null,null,null,null,null,null,null,null,null,null,{"$f":"IF(提出用!Y28=\"\",\"\",提出用!Y28)","v":""}]
[]
[null,{"$f":"IF(提出用!B30=\"\",\"\",提出用!B30)","v":""},null,null,null,null,null,null,null,null,null,null,null,null,null,null,null,null,null,null,null,null,null,null,{"$f":"IF(提出用!Y30=\"\",\"\",提出用!Y30)","v":""}]
[]
[null,null,null,null,null,null,null,null,null,null,null,null,null,"うち小売販売用",null,null,null,null,null,null,null,null,null,null,{"$f":"IF(提出用!Y32=\"\",\"\",提出用!Y32)","v":""}]
[]
[null,{"$f":"IF(提出用!B34=\"\",\"\",提出用!B34)","v":""},null,null,null,null,null,null,null,null,null,null,null,null,null,null,null,null,null,null,null,null,null,null,{"$f":"IF(提出用!Y34=\"\",\"\",提出用!Y34)","v":""}]
[]
[null,null,null,null,null,null,null,null,null,null,null,null,null,"うち小売販売用",null,null,null,null,null,null,null,null,null,null,{"$f":"IF(提出用!Y36=\"\",\"\",提出用!Y36)","v":""}]
[]
[null,{"$f":"IF(提出用!B38=\"\",\"\",提出用!B38)","v":""},null,null,null,null,null,null,null,null,null,null,null,null,null,null,null,null,null,null,null,null,null,null,{"$f":"IF(提出用!Y38=\"\",\"\",提出用!Y38)","v":""}]
[]
[null,null,null,null,null,null,null,null,null,null,null,null,null,"うち小売販売用",null,null,null,null,null,null,null,null,null,null,{"$f":"IF(提出用!Y40=\"\",\"\",提出用!Y40)","v":""}]
[]
[null,{"$f":"IF(提出用!B42=\"\",\"\",提出用!B42)","v":""},null,null,null,null,null,null,null,null,null,null,null,null,null,null,null,null,null,null,null,null,null,null,{"$f":"IF(提出用!Y42=\"\",\"\",提出用!Y42)","v":""}]
[]
[null,null,null,null,null,null,null,null,null,null,null,null,null,"うち小売販売用",null,null,null,null,null,null,null,null,null,null,{"$f":"IF(提出用!Y44=\"\",\"\",提出用!Y44)","v":""}]
[]
[null,{"$f":"IF(提出用!B46=\"\",\"\",提出用!B46)","v":""},null,null,null,null,null,null,null,null,null,null,null,null,null,null,null,null,null,null,null,null,null,null,{"$f":"IF(提出用!Y46=\"\",\"\",提出用!Y46)","v":""}]
[]
[null,null,null,null,null,null,null,null,null,null,null,null,null,"うち小売販売用",null,null,null,null,null,null,null,null,null,null,{"$f":"IF(提出用!Y48=\"\",\"\",提出用!Y48)","v":""}]
[]
[null,{"$f":"IF(提出用!B50=\"\",\"\",提出用!B50)","v":""},null,null,null,null,null,null,null,null,null,null,null,null,null,null,null,null,null,null,null,null,null,null,{"$f":"IF(提出用!Y50=\"\",\"\",提出用!Y50)","v":""}]
[]
[null,null,null,null,null,null,null,null,null,null,null,null,null,"うち小売販売用",null,null,null,null,null,null,null,null,null,null,{"$f":"IF(提出用!Y52=\"\",\"\",提出用!Y52)","v":""}]
[]
[null,{"$f":"IF(提出用!B54=\"\",\"\",提出用!B54)","v":""},null,null,null,null,null,null,null,null,null,null,null,null,null,null,null,null,null,null,null,null,null,null,{"$f":"IF(提出用!Y54=\"\",\"\",提出用!Y54)","v":""}]
[]
[null,null,null,null,null,null,null,null,null,null,null,null,null,"うち小売販売用",null,null,null,null,null,null,null,null,null,null,{"$f":"IF(提出用!Y56=\"\",\"\",提出用!Y56)","v":""}]
[]
[null,{"$f":"IF(提出用!B58=\"\",\"\",提出用!B58)","v":""},null,null,null,null,null,null,null,null,null,null,null,null,null,null,null,null,null,null,null,null,null,null,{"$f":"IF(提出用!Y58=\"\",\"\",提出用!Y58)","v":""}]
[]
[null,null,null,null,null,null,null,null,null,null,null,null,null,"うち小売販売用",null,null,null,null,null,null,null,null,null,null,{"$f":"IF(提出用!Y60=\"\",\"\",提出用!Y60)","v":""}]
[]
[null,{"$f":"IF(提出用!B62=\"\",\"\",提出用!B62)","v":""},null,null,null,null,null,null,null,null,null,null,null,null,null,null,null,null,null,null,null,null,null,null,{"$f":"IF(提出用!Y62=\"\",\"\",提出用!Y62)","v":""}]
[]
[null,null,null,null,null,null,null,null,null,null,null,null,null,"うち小売販売用",null,null,null,null,null,null,null,null,null,null,{"$f":"IF(提出用!Y64=\"\",\"\",提出用!Y64)","v":""}]

{"sheet":"入力用","index":2,"n_rows":64,"n_cols":65,"rows_kept":64,"cut":false,"hidden":false,"merged":[[16,1,18,2],[61,13,62,13],[61,14,61,23],[61,1,64,2],[57,13,58,13],[57,14,57,23],[57,1,60,2],[53,13,54,13],[53,14,53,23],[53,1,56,2],[49,13,50,13],[49,14,49,23],[49,1,52,2],[45,13,46,13],[29,1,32,2],[29,13,30,13],[25,13,26,13],[25,14,25,23],[7,19,8,72],[9,23,11,24],[9,61,10,66],[13,14,15,15],[13,18,15,19],[15,49,16,58],[9,14,12,18],[18,49,18,58],[12,20,15,48],[9,55,10,60],[13,16,15,17],[37,24,37,72],[12,49,13,58],[6,28,6,30],[6,31,6,33],[6,34,6,36],[6,37,6,39],[6,40,6,42],[9,67,10,72],[6,49,6,51],[6,52,6,54],[9,25,10,30],[9,31,10,36],[9,37,10,42],[9,43,10,48],[9,49,10,54],[6,43,6,45],[29,14,29,23],[45,14,45,23],[41,14,41,23],[21,14,21,23],[37,14,37,23],[33,14,33,23],[6,46,6,48],[2,25,3,54],[2,55,3,63],[2,64,3,72],[4,64,5,68],[4,69,5,72],[4,55,5,58],[4,59,5,63],[4,25,5,54],[57,24,57,72],[59,24,59,72],[61,24,61,72],[63,24,63,72],[21,1,24,2],[45,24,45,72],[47,24,47,72],[49,24,49,72],[51,24,51,72],[53,24,53,72],[55,24,55,72],[45,1,48,2],[41,13,42,13],[41,1,44,2],[37,13,38,13],[37,1,40,2],[19,1,20,2],[21,3,24,13],[39,24,39,72],[41,24,41,72],[43,24,43,72],[21,24,21,72],[23,24,23,72],[25,24,25,72],[27,24,27,72],[29,24,29,72],[31,24,31,72],[33,24,33,72],[35,24,35,72],[33,13,34,13],[33,1,36,2],[25,1,28,2]]}
[]
[]
[null,null,null,null,null,null,null,null,null,null,null,null,null,null,null,null,null,null,null,null,null,null,null,null,null,"事業者コード",null,null,null,null,null,null,null,null,null,null,null,null,null,null,null,null,null,null,null,null,null,null,null,null,null,null,null,null,null,"処理\n区分",null,null,null,null,null,null,null,null,"申告\n区分"]
[]
[null,null,null,null,null,null,null,null,null,null,null,null,null,null,null,null,null,null,null,null,null,null,null,null,null,{"$f":"IF(提出用!Z5=\"\",\"\",提出用!Z5)","v":""}]
[]
[]
[]
[]
[null,null,null,null,null,null,null,null,null,null,null,null,null,null,null,null,null,null,null,null,null,null,null,"オ",null,1,null,null,null,null,null,3]
[]
[]
[null,null,null,null,null,null,null,null,null,null,null,null,null,null,null,null,null,null,null,null,null,null,null,null,null,null,null,null,null,null,null,null,null,null,null,null,null,null,null,null,null,null,null,null,null,null,null,null,null,{"$f":"IF(提出用!AX13=\"\",\"\",提出用!AX13)","v":""}]
[null,null,null,null,null,null,null,null,null,null,null,null,null,null,{"$f":"IF(提出用!O14=\"\",\"\",提出用!O14)","v":""},null,null,null,{"$f":"IF(提出用!S14=\"\",\"\",提出用!S14)","v":""}]
[]
[null,null,null,null,null,null,null,null,null,null,null,null,null,null,null,null,null,null,null,null,null,null,null,null,null,null,null,null,null,null,null,null,null,null,null,null,null,null,null,null,null,null,null,null,null,null,null,null,null,{"$f":"IF(提出用!AX16=\"\",\"\",提出用!AX16)","v":""}]
[null,"カ"]
[]
[]
[]
[]
[null,"01",null,null,null,null,null,null,null,null,null,null,null,null,{"$f":"IF(提出用写!O22=\"\",\"\",提出用写!O22)","v":""},null,null,null,null,null,null,null,null,null,{"$f":"IF(提出用!Y22=\"\",\"\",提出用!Y22)","v":""}]
[]
[null,null,null,null,null,null,null,null,null,null,null,null,null,null,null,null,null,null,null,null,null,null,null,null,{"$f":"IF(提出用!Y24=\"\",\"\",提出用!Y24)","v":""}]
[]
[null,"02",null,null,null,null,null,null,null,null,null,null,null,null,{"$f":"IF(提出用写!O26=\"\",\"\",提出用写!O26)","v":""},null,null,null,null,null,null,null,null,null,{"$f":"IF(提出用!Y26=\"\",\"\",提出用!Y26)","v":""}]
[]
[null,null,null,null,null,null,null,null,null,null,null,null,null,null,null,null,null,null,null,null,null,null,null,null,{"$f":"IF(提出用!Y28=\"\",\"\",提出用!Y28)","v":""}]
[]
[null,"03",null,null,null,null,null,null,null,null,null,null,null,null,{"$f":"IF(提出用写!O30=\"\",\"\",提出用写!O30)","v":""},null,null,null,null,null,null,null,null,null,{"$f":"IF(提出用!Y30=\"\",\"\",提出用!Y30)","v":""}]
[]
[null,null,null,null,null,null,null,null,null,null,null,null,null,null,null,null,null,null,null,null,null,null,null,null,{"$f":"IF(提出用!Y32=\"\",\"\",提出用!Y32)","v":""}]
[]
[null,"04",null,null,null,null,null,null,null,null,null,null,null,null,{"$f":"IF(提出用写!O34=\"\",\"\",提出用写!O34)","v":""},null,null,null,null,null,null,null,null,null,{"$f":"IF(提出用!Y34=\"\",\"\",提出用!Y34)","v":""}]
[]
[null,null,null,null,null,null,null,null,null,null,null,null,null,null,null,null,null,null,null,null,null,null,null,null,{"$f":"IF(提出用!Y36=\"\",\"\",提出用!Y36)","v":""}]
[]
[null,"05",null,null,null,null,null,null,null,null,null,null,null,null,{"$f":"IF(提出用写!O38=\"\",\"\",提出用写!O38)","v":""},null,null,null,null,null,null,null,null,null,{"$f":"IF(提出用!Y38=\"\",\"\",提出用!Y38)","v":""}]
[]
[null,null,null,null,null,null,null,null,null,null,null,null,null,null,null,null,null,null,null,null,null,null,null,null,{"$f":"IF(提出用!Y40=\"\",\"\",提出用!Y40)","v":""}]
[]
[null,"06",null,null,null,null,null,null,null,null,null,null,null,null,{"$f":"IF(提出用写!O42=\"\",\"\",提出用写!O42)","v":""},null,null,null,null,null,null,null,null,null,{"$f":"IF(提出用!Y42=\"\",\"\",提出用!Y42)","v":""}]
[]
[null,null,null,null,null,null,null,null,null,null,null,null,null,null,null,null,null,null,null,null,null,null,null,null,{"$f":"IF(提出用!Y44=\"\",\"\",提出用!Y44)","v":""}]
[]
[null,"07",null,null,null,null,null,null,null,null,null,null,null,null,{"$f":"IF(提出用写!O46=\"\",\"\",提出用写!O46)","v":""},null,null,null,null,null,null,null,null,null,{"$f":"IF(提出用!Y46=\"\",\"\",提出用!Y46)","v":""}]
[]
[null,null,null,null,null,null,null,null,null,null,null,null,null,null,null,null,null,null,null,null,null,null,null,null,{"$f":"IF(提出用!Y48=\"\",\"\",提出用!Y48)","v":""}]
[]
[null,"08",null,null,null,null,null,null,null,null,null,null,null,null,{"$f":"IF(提出用写!O50=\"\",\"\",提出用写!O50)","v":""},null,null,null,null,null,null,null,null,null,{"$f":"IF(提出用!Y50=\"\",\"\",提出用!Y50)","v":""}]
[]
[null,null,null,null,null,null,null,null,null,null,null,null,null,null,null,null,null,null,null,null,null,null,null,null,{"$f":"IF(提出用!Y52=\"\",\"\",提出用!Y52)","v":""}]
[]
[null,"09",null,null,null,null,null,null,null,null,null,null,null,null,{"$f":"IF(提出用写!O54=\"\",\"\",提出用写!O54)","v":""},null,null,null,null,null,null,null,null,null,{"$f":"IF(提出用!Y54=\"\",\"\",提出用!Y54)","v":""}]
[]
[null,null,null,null,null,null,null,null,null,null,null,null,null,null,null,null,null,null,null,null,null,null,null,null,{"$f":"IF(提出用!Y56=\"\",\"\",提出用!Y56)","v":""}]
[]
[null,"10",null,null,null,null,null,null,null,null,null,null,null,null,{"$f":"IF(提出用写!O58=\"\",\"\",提出用写!O58)","v":""},null,null,null,null,null,null,null,null,null,{"$f":"IF(提出用!Y58=\"\",\"\",提出用!Y58)","v":""}]
[]
[null,null,null,null,null,null,null,null,null,null,null,null,null,null,null,null,null,null,null,null,null,null,null,null,{"$f":"IF(提出用!Y60=\"\",\"\",提出用!Y60)","v":""}]
[]
[null,"11",null,null,null,null,null,null,null,null,null,null,null,null,{"$f":"IF(提出用写!O62=\"\",\"\",提出用写!O62)","v":""},null,null,null,null,null,null,null,null,null,{"$f":"IF(提出用!Y62=\"\",\"\",提出用!Y62)","v":""}]
[]
[null,null,null,null,null,null,null,null,null,null,null,null,null,null,null,null,null,null,null,null,null,null,null,null,{"$f":"IF(提出用!Y64=\"\",\"\",提出用!Y64)","v":""}]

{"sheet":"提出用控","index":3,"n_rows":64,"n_cols":65,"rows_kept":64,"cut":false,"hidden":false,"merged":[[3,1,3,22],[4,1,7,22],[8,1,9,22],[10,1,10,22],[49,13,50,23],[25,1,28,12],[18,1,19,12],[13,16,15,17],[23,13,24,23],[25,13,26,23],[27,13,28,23],[29,13,30,23],[31,13,32,23],[13,11,15,13],[13,14,15,15],[13,18,15,19],[51,13,52,23],[18,13,19,72],[61,1,64,12],[57,1,60,12],[53,1,56,12],[49,1,52,12],[45,1,48,12],[41,1,44,12],[41,13,42,23],[43,13,44,23],[45,13,46,23],[47,13,48,23],[20,13,22,23],[47,24,47,72],[49,24,49,72],[29,1,32,12],[13,20,15,22],[20,1,20,12],[37,1,40,12],[33,1,36,12],[33,13,34,23],[35,13,36,23],[37,13,38,23],[39,13,40,23],[21,1,24,12],[29,24,29,72],[12,49,13,58],[12,59,14,72],[15,49,16,58],[15,59,17,72],[31,24,31,72],[33,24,33,72],[9,49,10,54],[4,64,5,68],[4,69,5,72],[6,28,6,30],[6,31,6,33],[6,34,6,36],[6,37,6,39],[6,40,6,42],[6,43,6,45],[6,46,6,48],[4,55,5,58],[4,59,5,63],[2,23,11,24],[2,55,3,63],[2,64,3,72],[2,25,3,54],[9,55,10,60],[9,61,10,66],[9,67,10,72],[6,49,6,51],[6,52,6,54],[7,25,8,36],[7,37,8,72],[4,25,5,54],[9,25,10,30],[9,31,10,36],[9,37,10,42],[9,43,10,48],[53,24,53,72],[55,24,55,72],[35,24,35,72],[37,24,37,72],[39,24,39,72],[41,24,41,72],[43,24,43,72],[63,13,64,23],[21,24,21,72],[23,24,23,72],[25,24,25,72],[27,24,27,72],[53,13,54,23],[55,13,56,23],[57,13,58,23],[59,13,60,23],[61,13,62,23],[45,24,45,72],[57,24,57,72],[59,24,59,72],[61,24,61,72],[63,24,63,72],[51,24,51,72]]}
[]
[]
[null,null,null,null,null,null,null,null,null,null,null,null,null,null,null,null,null,null,null,null,null,null,null,"※処理事項",null,"事業者コード",null,null,null,null,null,null,null,null,null,null,null,null,null,null,null,null,null,null,null,null,null,null,null,null,null,null,null,null,null,"処理\n区分",null,null,null,null,null,null,null,null,"申告\n区分"]
[null,"　申告者の氏名又は名称"]
[null,{"$f":"IF(提出用!B5=\"\",\"\",提出用!B5)","v":""}]
[]
[]
[null,null,null,null,null,null,null,null,null,null,null,null,null,null,null,null,null,null,null,null,null,null,null,null,null,"予備",null,null,null,null,null,null,null,null,null,null,null,"申告年月日"]
[null,"　個人番号又は法人番号\n　　　　　　↓個人番号の記載に当たっては、左端を空欄とし、ここから記載してください。"]
[null,null,null,null,null,null,null,null,null,null,null,null,null,null,null,null,null,null,null,null,null,null,null,null,null,1,null,null,null,null,null,3]
[null,{"$f":"IF(提出用!B11=\"\",\"\",提出用!B11)","v":""}]
[]
[null,null,null,null,null,null,null,null,null,null,null,null,null,null,null,null,null,null,null,null,null,null,null,null,null,null,null,null,null,null,null,null,null,null,null,null,null,null,null,null,null,null,null,null,null,null,null,null,null,{"$f":"IF(提出用!AX13=\"\",\"\",提出用!AX13)","v":""},null,null,null,null,null,null,null,null,null,"枚のうち"]
[null,null,null,null,null,null,null,null,null,null,null,"令和",null,null,{"$f":"IF(提出用!O14=\"\",\"\",提出用!O14)","v":""},null,"年",null,{"$f":"IF(提出用!S14=\"\",\"\",提出用!S14)","v":""},null,"月分"]
[]
[null,null,null,null,null,null,null,null,null,null,null,null,null,null,null,null,null,null,null,null,null,null,null,null,null,null,null,null,null,null,null,null,null,null,null,null,null,null,null,null,null,null,null,null,null,null,null,null,null,{"$f":"IF(提出用!AX16=\"\",\"\",提出用!AX16)","v":""},null,null,null,null,null,null,null,null,null,"枚目"]
[]
[]
[null,"卸売販売業者等の氏名又は名称",null,null,null,null,null,null,null,null,null,null,null,"数量"]
[]
[]
[null,{"$f":"IF(提出用!B22=\"\",\"\",提出用!B22)","v":""},null,null,null,null,null,null,null,null,null,null,null,null,null,null,null,null,null,null,null,null,null,null,{"$f":"IF(提出用!Y22=\"\",\"\",提出用!Y22)","v":""}]
[]
[null,null,null,null,null,null,null,null,null,null,null,null,null,"うち小売販売用",null,null,null,null,null,null,null,null,null,null,{"$f":"IF(提出用!Y24=\"\",\"\",提出用!Y24)","v":""}]
[]
[null,{"$f":"IF(提出用!B26=\"\",\"\",提出用!B26)","v":""},null,null,null,null,null,null,null,null,null,null,null,null,null,null,null,null,null,null,null,null,null,null,{"$f":"IF(提出用!Y26=\"\",\"\",提出用!Y26)","v":""}]
[]
[null,null,null,null,null,null,null,null,null,null,null,null,null,"うち小売販売用",null,null,null,null,null,null,null,null,null,null,{"$f":"IF(提出用!Y28=\"\",\"\",提出用!Y28)","v":""}]
[]
[null,{"$f":"IF(提出用!B30=\"\",\"\",提出用!B30)","v":""},null,null,null,null,null,null,null,null,null,null,null,null,null,null,null,null,null,null,null,null,null,null,{"$f":"IF(提出用!Y30=\"\",\"\",提出用!Y30)","v":""}]
[]
[null,null,null,null,null,null,null,null,null,null,null,null,null,"うち小売販売用",null,null,null,null,null,null,null,null,null,null,{"$f":"IF(提出用!Y32=\"\",\"\",提出用!Y32)","v":""}]
[]
[null,{"$f":"IF(提出用!B34=\"\",\"\",提出用!B34)","v":""},null,null,null,null,null,null,null,null,null,null,null,null,null,null,null,null,null,null,null,null,null,null,{"$f":"IF(提出用!Y34=\"\",\"\",提出用!Y34)","v":""}]
[]
[null,null,null,null,null,null,null,null,null,null,null,null,null,"うち小売販売用",null,null,null,null,null,null,null,null,null,null,{"$f":"IF(提出用!Y36=\"\",\"\",提出用!Y36)","v":""}]
[]
[null,{"$f":"IF(提出用!B38=\"\",\"\",提出用!B38)","v":""},null,null,null,null,null,null,null,null,null,null,null,null,null,null,null,null,null,null,null,null,null,null,{"$f":"IF(提出用!Y38=\"\",\"\",提出用!Y38)","v":""}]
[]
[null,null,null,null,null,null,null,null,null,null,null,null,null,"うち小売販売用",null,null,null,null,null,null,null,null,null,null,{"$f":"IF(提出用!Y40=\"\",\"\",提出用!Y40)","v":""}]
[]
[null,{"$f":"IF(提出用!B42=\"\",\"\",提出用!B42)","v":""},null,null,null,null,null,null,null,null,null,null,null,null,null,null,null,null,null,null,null,null,null,null,{"$f":"IF(提出用!Y42=\"\",\"\",提出用!Y42)","v":""}]
[]
[null,null,null,null,null,null,null,null,null,null,null,null,null,"うち小売販売用",null,null,null,null,null,null,null,null,null,null,{"$f":"IF(提出用!Y44=\"\",\"\",提出用!Y44)","v":""}]
[]
[null,{"$f":"IF(提出用!B46=\"\",\"\",提出用!B46)","v":""},null,null,null,null,null,null,null,null,null,null,null,null,null,null,null,null,null,null,null,null,null,null,{"$f":"IF(提出用!Y46=\"\",\"\",提出用!Y46)","v":""}]
[]
[null,null,null,null,null,null,null,null,null,null,null,null,null,"うち小売販売用",null,null,null,null,null,null,null,null,null,null,{"$f":"IF(提出用!Y48=\"\",\"\",提出用!Y48)","v":""}]
[]
[null,{"$f":"IF(提出用!B50=\"\",\"\",提出用!B50)","v":""},null,null,null,null,null,null,null,null,null,null,null,null,null,null,null,null,null,null,null,null,null,null,{"$f":"IF(提出用!Y50=\"\",\"\",提出用!Y50)","v":""}]
[]
[null,null,null,null,null,null,null,null,null,null,null,null,null,"うち小売販売用",null,null,null,null,null,null,null,null,null,null,{"$f":"IF(提出用!Y52=\"\",\"\",提出用!Y52)","v":""}]
[]
[null,{"$f":"IF(提出用!B54=\"\",\"\",提出用!B54)","v":""},null,null,null,null,null,null,null,null,null,null,null,null,null,null,null,null,null,null,null,null,null,null,{"$f":"IF(提出用!Y54=\"\",\"\",提出用!Y54)","v":""}]
[]
[null,null,null,null,null,null,null,null,null,null,null,null,null,"うち小売販売用",null,null,null,null,null,null,null,null,null,null,{"$f":"IF(提出用!Y56=\"\",\"\",提出用!Y56)","v":""}]
[]
[null,{"$f":"IF(提出用!B58=\"\",\"\",提出用!B58)","v":""},null,null,null,null,null,null,null,null,null,null,null,null,null,null,null,null,null,null,null,null,null,null,{"$f":"IF(提出用!Y58=\"\",\"\",提出用!Y58)","v":""}]
[]
[null,null,null,null,null,null,null,null,null,null,null,null,null,"うち小売販売用",null,null,null,null,null,null,null,null,null,null,{"$f":"IF(提出用!Y60=\"\",\"\",提出用!Y60)","v":""}]
[]
[null,{"$f":"IF(提出用!B62=\"\",\"\",提出用!B62)","v":""},null,null,null,null,null,null,null,null,null,null,null,null,null,null,null,null,null,null,null,null,null,null,{"$f":"IF(提出用!Y62=\"\",\"\",提出用!Y62)","v":""}]
[]
[null,null,null,null,null,null,null,null,null,null,null,null,null,"うち小売販売用",null,null,null,null,null,null,null,null,null,null,{"$f":"IF(提出用!Y64=\"\",\"\",提出用!Y64)","v":""}]